Cogmind - Beta 11.1 @@@ ROGUE MODE // 2022.05.04 @ 22:20:16 Player: Azken Zutik Result: Destroyed by H-61 Shepherd with Heavy Assault Cannon Performance ------------- Evolutions (4) 2000 Regions Visited (11) 2200 Robots Destroyed (0) 0 Value Destroyed (0) 0 Prototype IDs (2) 40 Alien Tech Used (0) 0 Bonus (2425) 2425 TOTAL SCORE: 6665 Bonus ------- Pacifist 1325 Entered Garrisons 600 Used RIF Installer 500 Cogmind --------- Core Integrity 0/850 Matter 247/300 Energy 99/100 System Corruption 2% Temperature Cool (0) Movement Core (50) Location -6/Factory Parts ------- > --- POWER (2) -------- (None) > --- PROPULSION (6) --- (None) > --- UTILITY (5) ------ (None) > --- WEAPON (2) ------- (None) > --- INVENTORY (5) ---- Light Treads Wheel Heavy Particle Cannon Peak State ------------ > --- POWER ------------ Light Deuterium Engine > --- PROPULSION ------- Improved VTOL Module Xenon Bombardment Thruster Xenon Bombardment Thruster Xenon Bombardment Thruster Xenon Bombardment Thruster > --- UTILITY ---------- (None) > --- WEAPON ----------- (None) > --- INVENTORY -------- Light Treads Light Treads Wheel Heavy Particle Cannon [Rating: 23] Favorites ----------- Power Light Deuterium Engine Engine Light Deuterium Engine Propulsion Xenon Bombardment Thruster Treads Light Treads Flight Unit Xenon Bombardment Thruster Utility None Weapon Heavy Particle Cannon Energy Cannon Heavy Particle Cannon Build | -11 -10 -10 -9 -8 -7 -7 -7 -7 -6 -6 -6 ------- Run | Scr Mat Min Mat Mat Fac Gar Fac Gar Fac Gar Fac Slots Evolved 8 | . . . 2 2 2 . . . 2 . . Power 1 | . . . . . . . . . 1 . . Propulsion 4 | . . . 2 1 1 . . . . . . Utility 3 | . . . . 1 1 . . . 1 . . Weapon . | . . . . . . . . . . . . Parts Attached 14 | . . . 1 5 3 . . 2 1 2 . Power 2 | . . . . 1 1 . . . . . . Engine 2 | . . . . 1 1 . . . . . . Core . | . . . . . . . . . . . . Reactor . | . . . . . . . . . . . . Propulsion 11 | . . . . 4 2 . . 2 1 2 . Treads 4 | . . . . . . . . 2 . 2 . Leg . | . . . . . . . . . . . . Wheel . | . . . . . . . . . . . . Hover . | . . . . . . . . . . . . Flight 7 | . . . . 4 2 . . . 1 . . Utility . | . . . . . . . . . . . . Device . | . . . . . . . . . . . . Storage . | . . . . . . . . . . . . Processor . | . . . . . . . . . . . . Hackware . | . . . . . . . . . . . . Protection . | . . . . . . . . . . . . Artifact . | . . . . . . . . . . . . Weapon 1 | . . . 1 . . . . . . . . Energy Gun . | . . . . . . . . . . . . Energy Cannon 1 | . . . 1 . . . . . . . . Ballistic Gun . | . . . . . . . . . . . . Ballistic Cannon . | . . . . . . . . . . . . Launcher . | . . . . . . . . . . . . Special Weapon . | . . . . . . . . . . . . Impact Weapon . | . . . . . . . . . . . . Slashing Weapon . | . . . . . . . . . . . . Piercing Weapon . | . . . . . . . . . . . . Special Melee Weapon . | . . . . . . . . . . . . Unidentified Prototypes 2 | . . . . . 1 . . . 1 . . Parts Lost 10 | . . . . 2 . . . 4 . 3 1 Power 2 | . . . . 1 . . . 1 . . . Propulsion 8 | . . . . 1 . . . 3 . 3 1 Utility . | . . . . . . . . . . . . Weapon . | . . . . . . . . . . . . Highest Loss Streak 4 | . . . . 2 . . . 4 . 3 1 To Critical Strikes . | . . . . . . . . . . . . Average Slot Usage (%) 15 | . . . 5 36 30 46 46 34 16 9 4 Engine 1 | . . . . 4 1 7 7 5 . . . Treads 1 | . . . . . . . . . . 2 4 Flight 11 | . . . . 31 29 38 38 28 16 7 . Naked Turns 160 | . 33 26 47 3 . . . . . 17 34 Heaviest Build 6 | . . . 6 3 5 5 5 5 . . . Greatest Support 29 | 3 3 3 3 24 29 29 29 29 16 20 3 Greatest Overweight (x) 1 | . . . 1 . . . . . . . . Average Overweight (x) . | . . . . . . . . . . . . Largest Inventory Capacity 5 | . 5 5 5 5 5 5 5 5 5 5 5 Average Capacity 5 | . 5 5 5 5 5 5 5 5 5 5 5 Most Carried 5 | . 5 5 5 5 4 4 4 4 4 4 3 Average Carried 3 | . 5 5 5 4 4 4 4 3 4 3 3 Final Capacity 5 | 5 5 5 5 5 5 5 5 5 5 5 5 Final Carried 5 | 5 5 5 5 4 4 4 4 4 4 3 3 Class Distribution -------------------- 64% | Mutant 35% | Sprinter Dominant Class ---------------- Mutant | -10/Materials Mutant | -10/Mines Mutant | -9/Materials Sprinter | -8/Materials Mutant | -7/Factory Sprinter | -7/Garrison Sprinter | -7/Factory Sprinter | -7/Garrison Sprinter | -6/Factory Mutant | -6/Garrison Mutant | -6/Factory Resources | -11 -10 -10 -9 -8 -7 -7 -7 -7 -6 -6 -6 ----------- Run | Scr Mat Min Mat Mat Fac Gar Fac Gar Fac Gar Fac Matter Collected 201 | 200 . . . . . . . . . 1 . Remotely . | . . . . . . . . . . . . Salvage Created . | . . . . . . . . . . . . Parts . | . . . . . . . . . . . . Haulers Intercepted . | . . . . . . . . . . . . Recyclers Shooed . | . . . . . . . . . . . . Parts Field Recycled . | . . . . . . . . . . . . Retrieved Matter . | . . . . . . . . . . . . Parts Self-Destructed . | . . . . . . . . . . . . Prevented . | . . . . . . . . . . . . Kills | -11 -10 -10 -9 -8 -7 -7 -7 -7 -6 -6 -6 ------- Run | Scr Mat Min Mat Mat Fac Gar Fac Gar Fac Gar Fac Combat Hostiles Destroyed . | . . . . . . . . . . . . Classes Destroyed . | . . . . . . . . . . . . Best Kill Streak . | . . . . . . . . . . . . Combat Bots Only . | . . . . . . . . . . . . Max Kills in Single Turn . | . . . . . . . . . . . . Gunslinging . | . . . . . . . . . . . . Exploded . | . . . . . . . . . . . . Melee . | . . . . . . . . . . . . Uniques/NPCs Destroyed . | . . . . . . . . . . . . Combat | -11 -10 -10 -9 -8 -7 -7 -7 -7 -6 -6 -6 -------- Run | Scr Mat Min Mat Mat Fac Gar Fac Gar Fac Gar Fac Damage Taken 1813 | . 61 . 137 221 . . . 285 . 402 707 Core 1242 | . 61 . 137 102 . . . 58 . 275 609 Absorbed by Shields 19 | . . . . . . . . 19 . . . Core Remaining (%) 82 | 100 . 75 65 81 . . . 91 . . . Volleys Fired 12 | . . . 12 . . . . . . . . Largest 1 | . . . 1 . . . . . . . . Hottest 75 | . . . 75 . . . . . . . . Shots Fired 12 | . . . 12 . . . . . . . . Gun . | . . . . . . . . . . . . Cannon 12 | . . . 12 . . . . . . . . Launcher . | . . . . . . . . . . . . Special . | . . . . . . . . . . . . Kinetic . | . . . . . . . . . . . . Thermal 12 | . . . 12 . . . . . . . . Explosive . | . . . . . . . . . . . . Electromagnetic . | . . . . . . . . . . . . Robot Hit Streak . | . . . . . . . . . . . . Robot Miss Streak . | . . . . . . . . . . . . Penetration Max . | . . . . . . . . . . . . Secondary Targets . | . . . . . . . . . . . . Shots Hit Robots . | . . . . . . . . . . . . Core Hits 2 | . . . . . . . . . . . 2 Critical Kills . | . . . . . . . . . . . . Critical Parts Destroyed . | . . . . . . . . . . . . Critical Strikes . | . . . . . . . . . . . . Melee Attacks . | . . . . . . . . . . . . Impact . | . . . . . . . . . . . . Slashing . | . . . . . . . . . . . . Piercing . | . . . . . . . . . . . . Sneak Attacks . | . . . . . . . . . . . . Combat Hostiles . | . . . . . . . . . . . . Follow-up Attacks . | . . . . . . . . . . . . Damage Inflicted 46 | . . . . . . . . . . . 46 Guns . | . . . . . . . . . . . . Cannons . | . . . . . . . . . . . . Explosions . | . . . . . . . . . . . . Melee . | . . . . . . . . . . . . Ramming 46 | . . . . . . . . . . . 46 Kinetic . | . . . . . . . . . . . . Thermal . | . . . . . . . . . . . . Explosive . | . . . . . . . . . . . . Electromagnetic . | . . . . . . . . . . . . Impact . | . . . . . . . . . . . . Slashing . | . . . . . . . . . . . . Piercing . | . . . . . . . . . . . . Highest Corruption 2 | . . . . . . . 1 1 . . 2 Average Corruption 1 | . . . . . . . 1 1 . . 2 Corruption Purged . | . . . . . . . . . . . . Corruption Blocked . | . . . . . . . . . . . . Effects 2 | . . . . . . . . 1 . . 1 Message Errors 2 | . . . . . . . . 1 . . 1 Overload Shots . | . . . . . . . . . . . . Overflow Damage . | . . . . . . . . . . . . Projectiles . | . . . . . . . . . . . . Explosions . | . . . . . . . . . . . . Melee . | . . . . . . . . . . . . Knockbacks . | . . . . . . . . . . . . Impact . | . . . . . . . . . . . . Kinetic . | . . . . . . . . . . . . Secondary . | . . . . . . . . . . . . Self-Inflicted Damage 21 | . . . . . . . . . . . 21 Shots . | . . . . . . . . . . . . Rammed 11 | . . . . . . . . . . . 11 Targets Rammed 11 | . . . . . . . . . . . 11 Kicked . | . . . . . . . . . . . . Crushed . | . . . . . . . . . . . . Highest Temperature 162 | . . . 162 . 2 3 3 3 . . . Average Temperature 32 | . . . 79 . 1 1 1 1 . . . Received Heat Transfer 192 | . 36 . 51 . . . . 27 . 24 54 Siege Activations . | . . . . . . . . . . . . Robots Corrupted . | . . . . . . . . . . . . Combat Hostiles . | . . . . . . . . . . . . Parts Fried . | . . . . . . . . . . . . Impact Corruptions . | . . . . . . . . . . . . Robots Melted . | . . . . . . . . . . . . Combat Hostiles . | . . . . . . . . . . . . Parts Melted . | . . . . . . . . . . . . Heat Transferred . | . . . . . . . . . . . . Parts Sabotaged . | . . . . . . . . . . . . Parts Stolen . | . . . . . . . . . . . . Parts Stripped . | . . . . . . . . . . . . Power Chain Reactions . | . . . . . . . . . . . . Missiles Intercepted . | . . . . . . . . . . . . Alert | -11 -10 -10 -9 -8 -7 -7 -7 -7 -6 -6 -6 ------- Run | Scr Mat Min Mat Mat Fac Gar Fac Gar Fac Gar Fac Peak Influence 142 | . 15 5 142 108 64 44 23 40 . 45 116 Initial 59 | . . 5 1 59 49 44 23 25 . . 7 Average 35 | . 5 5 61 74 49 44 23 22 . 22 36 Maximum Alert Level . | . . . . . . . . . . . . Low Security (%) 100 | . 100 100 100 100 100 100 100 100 100 100 100 Level 1 . | . . . . . . . . . . . . Level 2 . | . . . . . . . . . . . . Level 3 . | . . . . . . . . . . . . Level 4 . | . . . . . . . . . . . . Level 5 . | . . . . . . . . . . . . High Security . | . . . . . . . . . . . . Max Security . | . . . . . . . . . . . . Squads Dispatched 3 | . . . 1 1 . . . . . . 1 Investigation 1 | . . . 1 . . . . . . . . Extermination . | . . . . . . . . . . . . Reinforcement 2 | . . . . 1 . . . . . . 1 Assault . | . . . . . . . . . . . . Garrison . | . . . . . . . . . . . . Intercept . | . . . . . . . . . . . . Searches Triggered . | . . . . . . . . . . . . Construction Impeded . | . . . . . . . . . . . . Haulers Reinforced . | . . . . . . . . . . . . Active Scanning Responses . | . . . . . . . . . . . . Cargo Convoy Interrupts . | . . . . . . . . . . . . Stealth | -11 -10 -10 -9 -8 -7 -7 -7 -7 -6 -6 -6 --------- Run | Scr Mat Min Mat Mat Fac Gar Fac Gar Fac Gar Fac Distress Signals 2 | . . . . 2 . . . . . . . Communications Jammed . | . . . . . . . . . . . . Distress Signals . | . . . . . . . . . . . . Times Spotted 49 | . 3 2 8 14 . . . 7 . 2 13 Peak Tracking Total 14 | . 4 2 9 14 . . . 7 . 2 8 Tactical Retreats 6 | . . . 2 1 . . . . . . 3 Traps | -11 -10 -10 -9 -8 -7 -7 -7 -7 -6 -6 -6 ------- Run | Scr Mat Min Mat Mat Fac Gar Fac Gar Fac Gar Fac Traps Triggered 7 | . . . . 1 . . 1 2 . 2 1 Indirectly . | . . . . . . . . . . . . Trap Hack Attempts . | . . . . . . . . . . . . Triggered . | . . . . . . . . . . . . Disarmed . | . . . . . . . . . . . . Reprogrammed . | . . . . . . . . . . . . Reused . | . . . . . . . . . . . . Traps Extracted . | . . . . . . . . . . . . Installed . | . . . . . . . . . . . . Triggered . | . . . . . . . . . . . . Machines | -11 -10 -10 -9 -8 -7 -7 -7 -7 -6 -6 -6 ---------- Run | Scr Mat Min Mat Mat Fac Gar Fac Gar Fac Gar Fac Machines Disabled . | . . . . . . . . . . . . Max in Single Turn . | . . . . . . . . . . . . Machines Sabotaged . | . . . . . . . . . . . . Garrisons Compromised . | . . . . . . . . . . . . Overloaded Fab Kills . | . . . . . . . . . . . . Hacking | -11 -10 -10 -9 -8 -7 -7 -7 -7 -6 -6 -6 --------- Run | Scr Mat Min Mat Mat Fac Gar Fac Gar Fac Gar Fac Machines Accessed 9 | . . . 1 1 1 . 1 . 2 . 3 Terminals 6 | . . . 1 1 . . . . 1 . 3 Fabricators . | . . . . . . . . . . . . Repair Stations . | . . . . . . . . . . . . Recycling Units . | . . . . . . . . . . . . Scanalyzers . | . . . . . . . . . . . . Garrison Access 3 | . . . . . 1 . 1 . 1 . . Total Hacks 16 | . . . 3 2 1 . 3 . 3 . 4 Successful 7 | . . . 1 1 1 . 1 . 2 . 1 Failed 9 | . . . 2 1 . . 2 . 1 . 3 Catastrophic 2 | . . . . . . . . . 1 . 1 Database Lockouts . | . . . . . . . . . . . . Manual 8 | . . . 3 2 . . . . . . 3 Terminals 10 | . . . 3 2 . . . . 1 . 4 Fabricators . | . . . . . . . . . . . . Repair Stations . | . . . . . . . . . . . . Recycling Units . | . . . . . . . . . . . . Scanalyzers . | . . . . . . . . . . . . Garrison Access 6 | . . . . . 1 . 3 . 2 . . Terminal Hacks 4 | . . . 1 1 . . . . 1 . 1 Open DSF 1 | . . . . . . . . . 1 . . Level Access Points 2 | . . . 1 1 . . . . . . . Zone Layout 1 | . . . . . . . . . . . 1 Fabricator Hacks . | . . . . . . . . . . . . Repair Station Hacks . | . . . . . . . . . . . . Recycling Unit Hacks . | . . . . . . . . . . . . Scanalyzer . | . . . . . . . . . . . . Garrison Access Hacks 3 | . . . . . 1 . 1 . 1 . . Unlock Access 3 | . . . . . 1 . 1 . 1 . . Unauthorized Hacks . | . . . . . . . . . . . . Terminals . | . . . . . . . . . . . . Fabricators . | . . . . . . . . . . . . Repair Stations . | . . . . . . . . . . . . Recycling Units . | . . . . . . . . . . . . Scanalyzers . | . . . . . . . . . . . . Garrison Access . | . . . . . . . . . . . . Data Cores Recovered . | . . . . . . . . . . . . Used . | . . . . . . . . . . . . Hacking Detections 4 | . . . 1 . . . 1 . . . 2 Full Trace Events 1 | . . . 1 . . . . . . . . Feedback Events . | . . . . . . . . . . . . Feedback Blocked . | . . . . . . . . . . . . Robot Schematics Acquired . | . . . . . . . . . . . . Robots Built . | . . . . . . . . . . . . Authchips . | . . . . . . . . . . . . Time . | . . . . . . . . . . . . Total Robot Build Rating . | . . . . . . . . . . . . Part Schematics Acquired . | . . . . . . . . . . . . Parts Built . | . . . . . . . . . . . . Authchips . | . . . . . . . . . . . . Time . | . . . . . . . . . . . . Total Part Build Rating . | . . . . . . . . . . . . Parts Repaired . | . . . . . . . . . . . . Time . | . . . . . . . . . . . . Parts Recycled . | . . . . . . . . . . . . Recycled Matter . | . . . . . . . . . . . . Retrieved Matter . | . . . . . . . . . . . . Retrieved Components . | . . . . . . . . . . . . Parts Scanalyzed . | . . . . . . . . . . . . Part Schematics Acquired . | . . . . . . . . . . . . Parts Damaged . | . . . . . . . . . . . . Bothacking | -11 -10 -10 -9 -8 -7 -7 -7 -7 -6 -6 -6 ------------ Run | Scr Mat Min Mat Mat Fac Gar Fac Gar Fac Gar Fac Used RIF Installer 1 | . . . . . . . . . . 1 . Robots Hacked . | . . . . . . . . . . . . Non-combat . | . . . . . . . . . . . . Combat . | . . . . . . . . . . . . Robot Hacks Applied . | . . . . . . . . . . . . Relay Couplers Released . | . . . . . . . . . . . . Fabnet Peak Effective % . | . . . . . . . . . . . . Robots Rewired . | . . . . . . . . . . . . Allies Hacked . | . . . . . . . . . . . . Hacks Repelled . | . . . . . . . . . . . . Allies | -11 -10 -10 -9 -8 -7 -7 -7 -7 -6 -6 -6 -------- Run | Scr Mat Min Mat Mat Fac Gar Fac Gar Fac Gar Fac Total Allies . | . . . . . . . . . . . . Largest Group . | . . . . . . . . . . . . Highest-Rated Group . | . . . . . . . . . . . . Highest-Rated Ally . | . . . . . . . . . . . . Total Orders . | . . . . . . . . . . . . Ally Attacks . | . . . . . . . . . . . . Total Damage . | . . . . . . . . . . . . Kills . | . . . . . . . . . . . . Allies Corrupted . | . . . . . . . . . . . . Allies Melted . | . . . . . . . . . . . . Intel | -11 -10 -10 -9 -8 -7 -7 -7 -7 -6 -6 -6 ------- Run | Scr Mat Min Mat Mat Fac Gar Fac Gar Fac Gar Fac Robot Analysis Total . | . . . . . . . . . . . . Derelict Logs Recovered . | . . . . . . . . . . . . Drone Launches . | . . . . . . . . . . . . Drone Recoveries . | . . . . . . . . . . . . Exploration | -11 -10 -10 -9 -8 -7 -7 -7 -7 -6 -6 -6 ------------- Run | Scr Mat Min Mat Mat Fac Gar Fac Gar Fac Gar Fac Turns Passed 613 | . 33 26 81 46 44 23 33 35 20 110 162 Spaces Moved 1363 | 1 66 51 102 111 118 84 119 83 55 272 301 Core 594 | 1 66 51 102 4 . . . . . 69 301 Treads 5 | . . . . . . . . 3 . 2 . Legs . | . . . . . . . . . . . . Wheels . | . . . . . . . . . . . . Hover . | . . . . . . . . . . . . Flight 764 | . . . . 107 118 84 119 80 55 201 . Fastest Speed 27 | 50 50 50 50 31 27 27 27 27 30 30 50 Average Speed 40 | 50 50 50 54 34 32 27 27 33 33 37 50 Slowest Speed 160 | 50 50 50 100 50 34 27 27 160 34 160 50 Overloaded Moves . | . . . . . . . . . . . . Propulsion Burnouts . | . . . . . . . . . . . . Robots Hopped 9 | . . . . 5 . . . 1 . 3 . Cave-ins Triggered . | . . . . . . . . . . . . Exploration Rate (%) 19 | 2 21 21 14 21 5 30 6 34 2 62 13 Regions Visited 11 Branch Regions 1 Pre-discovered Areas . | . . . . . . . . . . . . Known Exits Taken 5 | . . . 1 1 1 . 1 . 1 . . Unknown Exits Taken 3 | 1 1 1 . . . . . . . . . Scrap Searched . | . . . . . . . . . . . . Spaces Dug 9 | . . . 9 . . . . . . . . Terrain Destroyed 12 | . . . 12 . . . . . . . . Melee . | . . . . . . . . . . . . Projectile 12 | . . . 12 . . . . . . . . AOE . | . . . . . . . . . . . . Terrain Rammed . | . . . . . . . . . . . . Walls Destroyed . | . . . . . . . . . . . . Machines Disabled . | . . . . . . . . . . . . Actions | -11 -10 -10 -9 -8 -7 -7 -7 -7 -6 -6 -6 --------- Run | Scr Mat Min Mat Mat Fac Gar Fac Gar Fac Gar Fac Total 1395 | . 65 50 114 112 121 83 119 89 56 274 312 Wait . | . . . . . . . . . . . . Move 1337 | . 65 50 101 101 118 83 119 80 55 264 301 Hop 7 | . . . . 4 . . . 1 . 2 . Pick Up . | . . . . . . . . . . . . Fast Attach 9 | . . . 1 4 3 . . . 1 . . Attach 5 | . . . . 1 . . . 2 . 2 . Detach 4 | . . . . 1 . . . 2 . 1 . Swap . | . . . . . . . . . . . . Drop 1 | . . . . 1 . . . . . . . Fire 12 | . . . 12 . . . . . . . . Melee . | . . . . . . . . . . . . Ram 11 | . . . . . . . . . . . 11 Kick . | . . . . . . . . . . . . Crush . | . . . . . . . . . . . . Escape Stasis 9 | . . . . . . . . 4 . 5 . Rewire . | . . . . . . . . . . . . Trap . | . . . . . . . . . . . . Miscellaneous . | . . . . . . . . . . . . Route ------- -11/Scrapyard -10/Materials -10/Mines -9/Materials (discovered 3 exits: *Mat x3) -8/Materials (discovered 3 exits: *Fac x3) -7/Factory -7/Garrison -7/Factory -7/Garrison -6/Factory -6/Garrison (discovered 3 exits: *Fac x3) -6/Factory History --------- Turn | Location | Event 1 | -11/Scrapyard | Released all parts (6) 1 | -11/Scrapyard | Discovered new exit (range 0) 1 | -11/Scrapyard | Entered Materials 27 | -10/Materials | Discovered new exit (range 13) 34 | -10/Materials | Entered Mines 39 | -10/Mines | Met a Derelict bent on vengeance 53 | -10/Mines | Discovered new exit (range 14) 60 | -10/Mines | Entered Materials 60 | -9/Materials | Evolved 2 slots: Propulsion x2 102 | -9/Materials | Identified exit to Materials 141 | -9/Materials | Entered another Materials area 141 | -8/Materials | Evolved 2 slots: Propulsion x1, Utility x1 176 | -8/Materials | Identified exit to Factory 187 | -8/Materials | Entered Factory 187 | -7/Factory | Evolved 2 slots: Propulsion x1, Utility x1 231 | -7/Factory | Identified exit to Garrison 231 | -7/Factory | Entered Garrison 251 | -7/Garrison | Discovered new exit (range 12) 254 | -7/Garrison | Entered Factory 287 | -7/Factory | Identified exit to Garrison 287 | -7/Factory | Entered Garrison 298 | -7/Garrison | Triggered checkpoint 316 | -7/Garrison | Triggered checkpoint 317 | -7/Garrison | Discovered new exit (range 10) 322 | -7/Garrison | Entered Factory 322 | -6/Factory | Evolved 2 slots: Power x1, Utility x1 342 | -6/Factory | Identified exit to Garrison 342 | -6/Factory | Entered Garrison 347 | -6/Garrison | Lost 4 parts (1p3n) 352 | -6/Garrison | Spotted B-75 Beast 355 | -6/Garrison | Triggered checkpoint 369 | -6/Garrison | Discovered new exit (range 12) 372 | -6/Garrison | Attempted to access garrison exit controls, blocked by remote lockdown 396 | -6/Garrison | Discovered new exit (range 15) 401 | -6/Garrison | Attempted to access garrison exit controls, blocked by remote lockdown 420 | -6/Garrison | Triggered checkpoint 439 | -6/Garrison | Discovered new exit (range 15) 443 | -6/Garrison | Lost 3 parts (3n) 450 | -6/Garrison | Installed Relay Interface Framework 452 | -6/Garrison | Entered Factory 585 | -6/Factory | Core integrity fell below 50% 608 | -6/Factory | Core integrity fell below 20% 614 | -6/Factory | Destroyed by H-61 Shepherd with Heavy Assault Cannon Last Messages --------------- 00543_ G-50 Soldier emerges from a hatch in the floor. 00543_ S-27 Virus emerges from a hatch in the floor. 00550_ U-05 Engineer lays Concrete. 00569_ K-01 Serf collects debris. 00580_ Lgt. Treads destroyed. 00582_ K-01 Serf collects debris. 00584_ Slammed into U-05 Engineer. 00585_ Slammed into T-07 Excavator. 00587_ Slammed into U-05 Engineer. 00588_ Slammed into T-07 Excavator. 00595_ Slammed into U-05 Engineer. 00596_ Slammed into T-07 Excavator. 00599_ ALERT: Suspicious intruders detected, dispatching Cutter reinforcements to area. 00599_ Connecting with Terminal... >>Layout(Zone) Retrieving Zone 9U layout... Downloaded map data. 00603_ Knocked back. 00613_ C-17 Slicer destroyed. Map ----- +----------------------------------------------------+ | ?????????????????????????????????????????????????? | | ?????????????????????????????????????????????????? | | ?????????????????????????????????????????????????? | | ?????????????????????????????????????????????????? | | ?????????????????????????????????????????????????? | | ?????????????????????????????????????????????????? | | ?????????????????????????????????????????????????? | | ?????????????????????????????????????????????????? | | ?????????????????????????????????????????????????? | | ?????????????????????????????????????????????????? | | ?????????????????????????????????????????????????? | | ?????????????????????##+##???????????????????????? | | ????????????????????# ???????????????????????? | | ????????????????????# ???????????????????????? | | ????????????????????# ???????????????????????? | | ????????????????????+ ???????????????????????? | | ????????????????????# ???????????????????????? | | ????????????????????# #??????????????????????? | | ????????????????????# #??????????????????????? | | ????????????????????# #??????????????????????? | | ????????????????????# #??????????????????????? | | ######### # #??????????????????????? | | # # # #########??????????????? | | # # # % ???????????????? | | # # # """" ????????????????? | | + + # @ """" ????????????????? | | # # # # """" ????????????????? | | # # # # """" ????????????????? | | # # # # """" ????????????????? | | ### ### # c """" ????????????????? | | #?# #?########## """" ????????????????? | | #?# #??????????# != ???????????????? | | #?# #?????????## *=%! ########??????????????? | | ### #####??##?# /%* #?????????????????????? | | ##### ##"#### ## #?????????????????????? | | ##### "" #?????????????????????? | | T % s H #?????????????????????? | | ##### #?????????????????????? | | ????#! ########## % #?????????????????????? | | ####### ###????????# #?????????????????????? | | # ####################?????????????????????? | | "" / ???????????????????????????? | | Y" # ########???????????????????????????? | | # " #??????#???????????????????????????? | | # T #??????#???????????????????????????? | | ] # " #??????#???????????????????????????? | | # #?######???????????????????????????? | | ! + #?# ???????????????????????????? | | ####### #?#""" ???????????????????????????? | | #######?????# #?#""" ???????????????????????????? | +----------------------------------------------------+ Best States ------------- Heat Dissipation 37 Energy Generation 14 Energy Capacity 140 Matter Stores 300 Matter Capacity 300 Sight Range 16 Terrain Scan Density 10 Evasion (%) 64 Recoil Reduction 1 Item Schematics ----------------- None Robot Schematics ------------------ None Fabricated ------------ Nothing Alien Tech Used ----------------- None Achievements -------------- None Challenges ------------ None Game ------ Seed ReflectiveTransmissionRigger Manual? 0 Play Time 00:13:53 Cumulative 347.4 hours Start 2022.05.04 @ 22:08:25 End 2022.05.04 @ 22:20:16 Sessions 1 Manual Loads 0 Difficulty Rogue Special Mode None Game No. 153 Rogue 153 Adventurer 0 Explorer 0 Win Type - Total 7 Types 3/1/0/1/2/0/0/0/0 Lore% 66 Gallery% 79 Achievement% 69 Wizard Run 0 Options --------- ASCII 0 Keyboard 0 Movement Mouse Keybinds 0 Fullscreen 0 Font 28/SmallcapsGlow Map View 72x54 Tactical HUD 1 Map Filters NONE Filters NONE Steam 1 RUN: 68abab95-84fe-4ec8-8d96-f0fb8692fc84